Workbook

Sheet Sheet1
A1: HD, IK, 22/06/21 | C1: Muon RCS chain parameters
C4: Speed of light | D4: c0 | E4: [m/s] | F4: 299792458
C5: Electron charge | D5: e0 | E5: [10-19C] | F5: 1.602176634
C6: Muon rest mass | D6: mm | E6: [MeV] | F6: 105.6583755
C7: Muon lifetime (at rest) | D7: tm | E7: [ms] | F7: 2.196981122
E9: Unit | F9: RCS-LE (nc) | G9: RCS-ME (hybrid) | H9: RCS-HE (hybrid) | J9: Remark
C10: Injection energy | D10: Einj | E10: [TeV] | F10: 0.063 | G10: 0.3 | H10: 0.75
C11: Ejection energy | D11: Eej | E11: [TeV] | F11: 0.3 | G11: 0.75 | H11: 1.5
C12: Muon survival rate | D12: Nej/Ninj | F12: 0.9 | G12: 0.9 | H12: 0.9
C14: Circumference | D14: 2pR | E14: [km] | F14: 5.99 | G14: 5.99 | H14: 10.7
C15: Pack fraction | E15: [] | F15: 0.7 | G15: 0.7 | H15: 0.7
C16: Bending radius | D16: r | E16: [km] | F16: =F14/2/PI()*F15 -> 0.6673366764 | G16: =G14/2/PI()*G15 -> 0.6673366764 | H16: =H14/2/PI()*H15 -> 1.192070524
C17: Total straight section length | D17: lSS | E17: [km] | F17: =F14*(1-F15) -> 1.797 | G17: =G14*(1-G15) -> 1.797 | H17: =H14*(1-H15) -> 3.21
C18: Injection bending field (average) | D18: Binj | E18: [T] | F18: =$F$6*1000000/$F$4^2*($F$5*0.0000000000000000001)*F30*$F$4/(F$16*1000)/($F$5*0.0000000000000000001) -> 0.3149015893 | G18: =$F$6*1000000/$F$4^2*($F$5*0.0000000000000000001)*G30*$F$4/(G$16*1000)/($F$5*0.0000000000000000001) -> 1.499531377 | H18: =$F$6*1000000/$F$4^2*($F$5*0.0000000000000000001)*H30*$F$4/(H$16*1000)/($F$5*0.0000000000000000001) -> 2.098643213
C19: Ejection bending field (average) | D19: Bej | E19: [T] | F19: =$F$6*1000000/$F$4^2*($F$5*0.0000000000000000001)*F31*$F$4/(F$16*1000)/($F$5*0.0000000000000000001) -> 1.499531377 | G19: =$F$6*1000000/$F$4^2*($F$5*0.0000000000000000001)*G31*$F$4/(G$16*1000)/($F$5*0.0000000000000000001) -> 3.748828444 | H19: =$F$6*1000000/$F$4^2*($F$5*0.0000000000000000001)*H31*$F$4/(H$16*1000)/($F$5*0.0000000000000000001) -> 4.197286426
C20: Ejection minus injection field | D20: Bej - Binj | E20: [T] | F20: =F19-F18 -> 1.184629788 | G20: =G19-G18 -> 2.249297066 | H20: =H19-H18 -> 2.098643213
C23: Length of normal conducting section | D23: lnc | E23: [km] | G23: 3.094 | H23: 5.13
C24: Maximum field, super conducting | D24: Bsc,max | E24: [T] | G24: 10 | H24: 10
C25: Length of super conducting section | D25: lsc | E25: [km] | G25: =2*PI()*G16-G23 -> 1.099 | H25: =2*PI()*H16-H23 -> 2.36
C26: Injection bending field (normal cond.) | D26: -Bnc,inj | E26: [T] | G26: =(G25*G24-2*PI()*G16*G18)/G23 -> 1.519865848 | H26: =(H25*H24-2*PI()*H16*H18)/H23 -> 1.536288954
C27: Ejection bending field (normal cond.) | D27: Bnc,ej | E27: [T] | G27: =(2*PI()*G16*G19-G25*G24)/G23 -> 1.528389678 | H27: =(2*PI()*H16*H19-H25*H24)/H23 -> 1.527811955
C30: Injection relativistic mass factor | D30: ginj | E30: [] | F30: =F10*1000000000000/($F$6*1000000) -> 596.2612969 | G30: =G10*1000000000000/($F$6*1000000) -> 2839.339509 | H30: 7098.348772
C31: Injection relativistic mass factor | D31: gej | E31: [] | F31: 2839.339509 | G31: =G11*1000000000000/($F$6*1000000) -> 7098.348772 | H31: 14196.69754
C33: Revolution frequency | D33: frev | E33: [kHz] | F33: =$F$4/(F14*1000)/1000 -> 50.04882437 | G33: =$F$4/(G14*1000)/1000 -> 50.04882437 | H33: =$F$4/(H14*1000)/1000 -> 28.01798673
B35: Linear ramp | C35: Gradient for survival | D35: G | E35: [MV/m] | F35: =-LN(F11/F10)/LN(F12)*($F$6*1000000)*($F$5*0.0000000000000000001)/($F$7*0.000001)/$F$4/($F$5*0.0000000000000000001)/1000000 -> 2.37620499 | G35: =-LN(G11/G10)/LN(G12)*($F$6*1000000)*($F$5*0.0000000000000000001)/($F$7*0.000001)/$F$4/($F$5*0.0000000000000000001)/1000000 -> 1.395122386 | H35: =-LN(H11/H10)/LN(H12)*($F$6*1000000)*($F$5*0.0000000000000000001)/($F$7*0.000001)/$F$4/($F$5*0.0000000000000000001)/1000000 -> 1.055369343 | J35: Constant acceleration with linear energy increase
C36: Acceleration time | D36: Tacc | E36: [ms] | F36: =(F11-F10)*1000000000000/(F35*1000000)/$F$4*1000 -> 0.3326930584 | G36: =(G11-G10)*1000000000000/(G35*1000000)/$F$4*1000 -> 1.075918818 | H36: 2.370478856
C37: Number of turns | D37: nturn | F37: =(F36*0.001)*(F33*1000) -> 16.65089645 | G37: =(G36*0.001)*(G33*1000) -> 53.84847197 | H37: =(H36*0.001)*(H33*1000) -> 66.41604513
C38: Ramp rate | D38: dB/dt | E38: [kT/s] | F38: =(F19-F18)/(F36/1000)/1000 -> 3.560728901 | G38: =(G27+G26)/(G36*0.001)/1000 -> 2.833164989 | H38: =(H27+H26)/(H36*0.001)/1000 -> 1.292608412
C39: Maximum energy gain per turn | D39: DE | E39: [GeV] | F39: =(F11-F10)*1000000000000/(F36*0.001)/(F33*1000)/1000000000 -> 14.23346789 | G39: =(G11-G10)*1000000000000/(G36*0.001)/(G33*1000)/1000000000 -> 8.35678309 | H39: =(H11-H10)*1000000000000/(H36*0.001)/(H33*1000)/1000000000 -> 11.29245197 | J39: No overvoltage!
C40: Average gradient per straight length | D40: DE/l | E40: [MV/m] | F40: =F39/(F17*1000)*1000 -> 7.920683301 | G40: =G39/(G17*1000)*1000 -> 4.650407952 | H40: =H39/(H17*1000)*1000 -> 3.517897812
C42: Stable phase | D42: fS | E42: [°] | F42: 45 | G42: 45 | H42: 45
C43: Bucket area reduction factor | D43: AB/AB,st | E43: [] | F43: 0.1626975037 | G43: 0.1626975037 | H43: 0.1626975037
C44: RF voltage per turn | D44: VRF | E44: [GV] | F44: =F39/SIN(F42/180*PI()) -> 20.12916333 | G44: =G39/SIN(G42/180*PI()) -> 11.81827598 | H44: 15.96993874
C45: Gradient per straight length (50% RF) | D45: DE/l | E45: [MV/m] | F45: =F44/(F17*1000)*1000*2 -> 22.40307549 | G45: =G44/(G17*1000)*1000*2 -> 13.15333999 | H45: =H44/(H17*1000)*1000*2 -> 9.950117592 | J45: 50% of straight section length available to RF
C46: Phase slip factor | D46: h | E46: [] | F46: 0.0024 | G46: 0.0024 | H46: 0.0024
C47: Transition gamma | D47: gtr | E47: [] | F47: =SQRT(1/F46) -> 20.41241452 | G47: =SQRT(1/G46) -> 20.41241452 | H47: =SQRT(1/H46) -> 20.41241452
C48: RF frequency | D48: fRF | E48: [MHz] | F48: 1300 | G48: 1300 | H48: 1300
C49: Harmonic number | D49: h | E49: [] | F49: =ROUND(F48*1000/F33,0) -> 25975 | G49: =ROUND(G48*1000/G33,0) -> 25975 | H49: =ROUND(H48*1000/H33,0) -> 46399
C51: Injection synchrotron frequency | D51: fS,inj | E51: [kHz] | F51: =SQRT(F$49*F$46*(2*PI()*(F$33*1000))^2*($F$5*0.0000000000000000001)*(F$44*1000000000)*COS(F$42/180*PI())/(2*PI()*(F10*1000000000000*($F$5*0.0000000000000000001))))/(2*PI())/1000 -> 74.93288152 | G51: =SQRT(G$49*G$46*(2*PI()*(G$33*1000))^2*($F$5*0.0000000000000000001)*(G$44*1000000000)*COS(G$42/180*PI())/(2*PI()*(G10*1000000000000*($F$5*0.0000000000000000001))))/(2*PI())/1000 -> 26.31154091 | H51: =SQRT(H$49*H$46*(2*PI()*(H$33*1000))^2*($F$5*0.0000000000000000001)*(H$44*1000000000)*COS(H$42/180*PI())/(2*PI()*(H10*1000000000000*($F$5*0.0000000000000000001))))/(2*PI())/1000 -> 14.47339506
C52: Injection synchrotron tune | D52: fS,inj/frev | E52: [] | F52: =F51/F$33 -> 1.497195638 | G52: =G51/G$33 -> 0.5257174616 | H52: =H51/H$33 -> 0.5165751274
C53: Injection bucket area | D53: AB,inj | E53: [eVs] | F53: =8*SQRT(2)/(F$49*(2*PI()*(F$33*1000)))*SQRT((F10*1000000000000*($F$5*0.0000000000000000001))*($F$5*0.0000000000000000001)*(F$44*1000000000)/(PI()*F$49*F$46))/($F$5*0.0000000000000000001)*F$43 -> 0.573431268 | G53: =8*SQRT(2)/(G$49*(2*PI()*(G$33*1000)))*SQRT((G10*1000000000000*($F$5*0.0000000000000000001))*($F$5*0.0000000000000000001)*(G$44*1000000000)/(PI()*G$49*G$46))/($F$5*0.0000000000000000001)*G$43 -> 0.9588174401 | H53: =8*SQRT(2)/(H$49*(2*PI()*(H$33*1000)))*SQRT((H10*1000000000000*($F$5*0.0000000000000000001))*($F$5*0.0000000000000000001)*(H$44*1000000000)/(PI()*H$49*H$46))/($F$5*0.0000000000000000001)*H$43 -> 1.318584144
C54: Ejection synchrotron frequency | D54: fS,ej | E54: [kHz] | F54: =SQRT(F$49*F$46*(2*PI()*(F$33*1000))^2*($F$5*0.0000000000000000001)*(F$44*1000000000)*COS(F$42/180*PI())/(2*PI()*(F11*1000000000000*($F$5*0.0000000000000000001))))/(2*PI())/1000 -> 34.33856016 | G54: =SQRT(G$49*G$46*(2*PI()*(G$33*1000))^2*($F$5*0.0000000000000000001)*(G$44*1000000000)*COS(G$42/180*PI())/(2*PI()*(G11*1000000000000*($F$5*0.0000000000000000001))))/(2*PI())/1000 -> 16.6408796 | H54: =SQRT(H$49*H$46*(2*PI()*(H$33*1000))^2*($F$5*0.0000000000000000001)*(H$44*1000000000)*COS(H$42/180*PI())/(2*PI()*(H11*1000000000000*($F$5*0.0000000000000000001))))/(2*PI())/1000 -> 10.2342358
C55: Ejection synchrotron tune | D55: fS,ej/frev | E55: [] | F55: =F54/F$33 -> 0.686101234 | G55: =G54/G$33 -> 0.3324929169 | H55: =H54/H$33 -> 0.3652737755
C56: Injection bucket area | D56: AB,ej | E56: [eVs] | F56: =8*SQRT(2)/(F$49*(2*PI()*(F$33*1000)))*SQRT((F11*1000000000000*($F$5*0.0000000000000000001))*($F$5*0.0000000000000000001)*(F$44*1000000000)/(PI()*F$49*F$46))/($F$5*0.0000000000000000001)*F$43 -> 1.251329615 | G56: =8*SQRT(2)/(G$49*(2*PI()*(G$33*1000)))*SQRT((G11*1000000000000*($F$5*0.0000000000000000001))*($F$5*0.0000000000000000001)*(G$44*1000000000)/(PI()*G$49*G$46))/($F$5*0.0000000000000000001)*G$43 -> 1.516023486 | H56: =8*SQRT(2)/(H$49*(2*PI()*(H$33*1000)))*SQRT((H11*1000000000000*($F$5*0.0000000000000000001))*($F$5*0.0000000000000000001)*(H$44*1000000000)/(PI()*H$49*H$46))/($F$5*0.0000000000000000001)*H$43 -> 1.86475958
